[Event "*** SCC Grand Prix: Titled Tuesday Blitz"]
[Site "Chess.com"]
[Date "2020.08.25"]
[Round "10"]
[White "GukeshDommaraju"]
[Black "Maksimus1998"]
[Result "1/2-1/2"]
[WhiteElo "2711"]
[BlackElo "2605"]
[TimeControl "180+1"]
[EndTime "12:01:04 PDT"]
[Termination "Game drawn by repetition"]

1. e4 {[%clk 0:03:00.9]} 1... c5 {[%clk 0:03:00.2]} 2. f4 {[%clk 0:03:00.8]}
2... d6 {[%clk 0:03:00.9]} 3. Nf3 {[%clk 0:03:00.8]} 3... Nc6 {[%clk 0:03:00.9]}
4. Nc3 {[%clk 0:03:01.1]} 4... Nd4 {[%clk 0:02:56.5]} 5. d3 {[%clk 0:02:52.9]}
5... g6 {[%clk 0:02:49.5]} 6. Be2 {[%clk 0:02:43.7]} 6... Bg7 {[%clk 0:02:41.1]}
7. O-O {[%clk 0:02:43.7]} 7... e6 {[%clk 0:02:39.3]} 8. Kh1 {[%clk 0:02:43.4]}
8... Ne7 {[%clk 0:02:39.4]} 9. Be3 {[%clk 0:02:43.5]} 9... O-O {[%clk
0:02:39.1]} 10. Qd2 {[%clk 0:02:43.9]} 10... b6 {[%clk 0:02:39.2]} 11. Nd1
{[%clk 0:02:42]} 11... Bb7 {[%clk 0:02:38.5]} 12. c3 {[%clk 0:02:42.4]} 12...
Nxe2 {[%clk 0:02:37.7]} 13. Qxe2 {[%clk 0:02:43.3]} 13... Qd7 {[%clk 0:02:34.5]}
14. Nf2 {[%clk 0:02:43.3]} 14... d5 {[%clk 0:02:33]} 15. e5 {[%clk 0:02:40.9]}
15... d4 {[%clk 0:02:26.5]} 16. cxd4 {[%clk 0:02:40.5]} 16... cxd4 {[%clk
0:02:15.4]} 17. Nxd4 {[%clk 0:02:41.4]} 17... Nd5 {[%clk 0:02:14.5]} 18. Nf3
{[%clk 0:02:34.1]} 18... Rfd8 {[%clk 0:02:09.8]} 19. Rad1 {[%clk 0:02:27.4]}
19... Qa4 {[%clk 0:02:06.8]} 20. Ne4 {[%clk 0:02:17.8]} 20... Nxe3 {[%clk
0:02:05.5]} 21. Qxe3 {[%clk 0:02:17.5]} 21... Bxe4 {[%clk 0:02:04.7]} 22. Qxe4
{[%clk 0:02:17.5]} 22... Qxa2 {[%clk 0:02:02.9]} 23. b4 {[%clk 0:02:05.3]} 23...
Qd5 {[%clk 0:02:01.8]} 24. Qe3 {[%clk 0:01:34.9]} 24... a5 {[%clk 0:01:52.6]}
25. bxa5 {[%clk 0:01:25]} 25... bxa5 {[%clk 0:01:52.1]} 26. Ng5 {[%clk
0:01:23.4]} 26... Qd4 {[%clk 0:01:30.5]} 27. Qh3 {[%clk 0:01:21.5]} 27... h6
{[%clk 0:01:29.4]} 28. Ne4 {[%clk 0:00:54.1]} 28... a4 {[%clk 0:01:28.8]} 29.
Nd6 {[%clk 0:00:35.7]} 29... a3 {[%clk 0:01:24.8]} 30. Qf3 {[%clk 0:00:32.8]}
30... a2 {[%clk 0:01:17.2]} 31. Ra1 {[%clk 0:00:32.8]} 31... Ra3 {[%clk
0:01:00]} 32. Nb5 {[%clk 0:00:27.6]} 32... Qa4 {[%clk 0:00:51.2]} 33. Nxa3
{[%clk 0:00:26.9]} 33... Qxa3 {[%clk 0:00:52.1]} 34. Qe2 {[%clk 0:00:23.2]}
34... Ra8 {[%clk 0:00:51.5]} 35. h3 {[%clk 0:00:21.4]} 35... Bf8 {[%clk
0:00:51.6]} 36. Rf2 {[%clk 0:00:21]} 36... Bc5 {[%clk 0:00:48.2]} 37. Rxa2
{[%clk 0:00:21.1]} 37... Qc1+ {[%clk 0:00:47.2]} 38. Kh2 {[%clk 0:00:10.4]}
38... Rxa2 {[%clk 0:00:45.1]} 39. Qxa2 {[%clk 0:00:10.3]} 39... Bxf2 {[%clk
0:00:44.8]} 40. Qxf2 {[%clk 0:00:11.2]} 40... h5 {[%clk 0:00:42.8]} 41. d4
{[%clk 0:00:12.1]} 41... Qd1 {[%clk 0:00:42.3]} 42. g3 {[%clk 0:00:08]} 42...
Qd3 {[%clk 0:00:41.6]} 43. Kg2 {[%clk 0:00:07.7]} 43... Qe4+ {[%clk 0:00:40.9]}
44. Kg1 {[%clk 0:00:08]} 44... Qb1+ {[%clk 0:00:36.9]} 45. Kh2 {[%clk 0:00:08]}
45... Qe4 {[%clk 0:00:35.8]} 46. g4 {[%clk 0:00:07.5]} 46... hxg4 {[%clk
0:00:35.2]} 47. hxg4 {[%clk 0:00:08.4]} 47... Qd3 {[%clk 0:00:35.3]} 48. Kg2
{[%clk 0:00:06.7]} 48... Qe4+ {[%clk 0:00:35.3]} 49. Kg3 {[%clk 0:00:07]} 49...
Qd3+ {[%clk 0:00:35.3]} 50. Kh4 {[%clk 0:00:06.8]} 50... Kg7 {[%clk 0:00:32]}
51. Kg5 {[%clk 0:00:06.3]} 51... Qa3 {[%clk 0:00:26]} 52. f5 {[%clk 0:00:03.6]}
52... gxf5 {[%clk 0:00:15.3]} 53. gxf5 {[%clk 0:00:03.7]} 53... exf5 {[%clk
0:00:14.1]} 54. Qxf5 {[%clk 0:00:03.8]} 54... Qg3+ {[%clk 0:00:13.3]} 55. Qg4
{[%clk 0:00:04]} 55... Qe3+ {[%clk 0:00:12.3]} 56. Kf5+ {[%clk 0:00:04.1]} 56...
Kf8 {[%clk 0:00:12.8]} 57. Qf4 {[%clk 0:00:04.5]} 57... Qd3+ {[%clk 0:00:12.8]}
58. Qe4 {[%clk 0:00:04.5]} 58... Qh3+ {[%clk 0:00:12.7]} 59. Qg4 {[%clk
0:00:05.4]} 59... Qd3+ {[%clk 0:00:12.8]} 60. Kg5 {[%clk 0:00:05.8]} 60... Qg6+
{[%clk 0:00:12.7]} 61. Kh4 {[%clk 0:00:06.7]} 61... Qh6+ {[%clk 0:00:13.2]} 62.
Kg3 {[%clk 0:00:07.2]} 62... Qe3+ {[%clk 0:00:13.4]} 63. Kg2 {[%clk 0:00:07.4]}
63... Qd2+ {[%clk 0:00:13.4]} 64. Kh3 {[%clk 0:00:07.7]} 64... Qe3+ {[%clk
0:00:13.4]} 65. Kh4 {[%clk 0:00:07.3]} 65... Qh6+ {[%clk 0:00:13.5]} 66. Qh5
{[%clk 0:00:07.6]} 66... Qf4+ {[%clk 0:00:13.7]} 67. Qg4 {[%clk 0:00:08]} 67...
Qh6+ {[%clk 0:00:13.8]} 1/2-1/2

[Event "*** SCC Grand Prix: Titled Tuesday Blitz"]
[Site "Chess.com"]
[Date "2020.08.25"]
[Round "10"]
[White "zmeeed67"]
[Black "parintele_chess"]
[Result "1-0"]
[WhiteElo "2401"]
[BlackElo "2148"]
[TimeControl "180+1"]
[EndTime "12:01:07 PDT"]
[Termination "zmeeed67 won by resignation"]

1. e4 {[%clk 0:03:00.9]} 1... c5 {[%clk 0:02:57.3]} 2. g3 {[%clk 0:03:00.1]}
2... e5 {[%clk 0:02:56.4]} 3. Bg2 {[%clk 0:02:59.2]} 3... g6 {[%clk 0:02:56.7]}
4. Nc3 {[%clk 0:02:58.7]} 4... Bg7 {[%clk 0:02:56.8]} 5. Nge2 {[%clk 0:02:56.9]}
5... Ne7 {[%clk 0:02:57.1]} 6. O-O {[%clk 0:02:55.5]} 6... O-O {[%clk
0:02:57.4]} 7. d3 {[%clk 0:02:56]} 7... f5 {[%clk 0:02:57.7]} 8. f4 {[%clk
0:02:50.8]} 8... d6 {[%clk 0:02:56.6]} 9. Bd2 {[%clk 0:02:31.5]} 9... Nbc6
{[%clk 0:02:50.3]} 10. h3 {[%clk 0:02:27.5]} 10... Be6 {[%clk 0:02:45.7]} 11.
Kh2 {[%clk 0:02:27.1]} 11... Nd4 {[%clk 0:02:44.8]} 12. Nxd4 {[%clk 0:02:24.5]}
12... cxd4 {[%clk 0:02:45.7]} 13. Ne2 {[%clk 0:02:22.2]} 13... d5 {[%clk
0:02:42.3]} 14. exf5 {[%clk 0:02:19.9]} 14... Nxf5 {[%clk 0:02:39]} 15. fxe5
{[%clk 0:02:19.7]} 15... Bxe5 {[%clk 0:02:37.1]} 16. Bf4 {[%clk 0:02:13.9]}
16... Ne3 {[%clk 0:02:27.7]} 17. Bxe3 {[%clk 0:01:52]} 17... dxe3 {[%clk
0:02:28.6]} 18. d4 {[%clk 0:01:52.1]} 18... Bc7 {[%clk 0:02:15.8]} 19. Qd3
{[%clk 0:01:49.3]} 19... Qg5 {[%clk 0:02:15.3]} 20. c3 {[%clk 0:01:32.3]} 20...
Bf5 {[%clk 0:01:35]} 21. Bxd5+ {[%clk 0:01:26]} 21... Kh8 {[%clk 0:01:30.5]} 22.
Be4 {[%clk 0:00:56.6]} 22... Be6 {[%clk 0:01:03.7]} 23. Bg2 {[%clk 0:00:40.6]}
23... Qh6 {[%clk 0:00:47]} 24. Rxf8+ {[%clk 0:00:26.2]} 24... Rxf8 {[%clk
0:00:46.9]} 25. Rf1 {[%clk 0:00:26.2]} 25... Bf5 {[%clk 0:00:32.4]} 26. Qc4
{[%clk 0:00:21.9]} 26... Qh5 {[%clk 0:00:13.6]} 27. Nf4 {[%clk 0:00:17]} 27...
Bxf4 {[%clk 0:00:10.6]} 28. Rxf4 {[%clk 0:00:16.9]} 28... e2 {[%clk 0:00:10.9]}
29. g4 {[%clk 0:00:13.8]} 29... Qg5 {[%clk 0:00:10.5]} 30. Rxf5 {[%clk
0:00:12.3]} 30... gxf5 {[%clk 0:00:10.5]} 31. Qxe2 {[%clk 0:00:12.7]} 31... fxg4
{[%clk 0:00:10.6]} 32. hxg4 {[%clk 0:00:10.9]} 32... Qf4+ {[%clk 0:00:10.6]} 33.
Kg1 {[%clk 0:00:10.8]} 33... Qc1+ {[%clk 0:00:10.8]} 34. Kh2 {[%clk 0:00:10.5]}
34... Qh6+ {[%clk 0:00:08.6]} 35. Bh3 {[%clk 0:00:09.9]} 35... Qf4+ {[%clk
0:00:08]} 36. Kg2 {[%clk 0:00:09.6]} 36... Qc1 {[%clk 0:00:05]} 37. g5 {[%clk
0:00:08.2]} 37... Qf4 {[%clk 0:00:03.1]} 38. Qe5+ {[%clk 0:00:07.5]} 38... Qxe5
{[%clk 0:00:03.1]} 39. dxe5 {[%clk 0:00:08]} 39... Re8 {[%clk 0:00:03.3]} 40. e6
{[%clk 0:00:08.3]} 40... Kg7 {[%clk 0:00:03.8]} 41. Kf3 {[%clk 0:00:08.9]} 41...
Kg6 {[%clk 0:00:04]} 42. Kf4 {[%clk 0:00:09.2]} 42... Rf8+ {[%clk 0:00:03.8]}
43. Ke5 {[%clk 0:00:09.2]} 43... Kxg5 {[%clk 0:00:04.2]} 44. e7 {[%clk
0:00:09.3]} 44... Re8 {[%clk 0:00:04.3]} 45. Kd6 {[%clk 0:00:09.7]} 45... Kf6
{[%clk 0:00:04.5]} 46. Bd7 {[%clk 0:00:07]} 46... Rxe7 {[%clk 0:00:04.9]} 47.
Bg4 {[%clk 0:00:07.6]} 47... Re2 {[%clk 0:00:04.9]} 48. Bxe2 {[%clk 0:00:07.4]}
48... Kf5 {[%clk 0:00:05.8]} 49. Bf3 {[%clk 0:00:07.7]} 49... b6 {[%clk
0:00:06.4]} 50. Bh1 {[%clk 0:00:07]} 50... Kf4 {[%clk 0:00:05.9]} 51. Kc7 {[%clk
0:00:07.4]} 51... h5 {[%clk 0:00:06.8]} 52. Kb7 {[%clk 0:00:07.2]} 52... a5
{[%clk 0:00:07.1]} 53. Kxb6 {[%clk 0:00:07.1]} 53... a4 {[%clk 0:00:08]} 54. c4
{[%clk 0:00:07.3]} 54... a3 {[%clk 0:00:08.1]} 55. bxa3 {[%clk 0:00:07.1]} 55...
h4 {[%clk 0:00:09]} 56. c5 {[%clk 0:00:07.2]} 56... h3 {[%clk 0:00:09.9]} 57. c6
{[%clk 0:00:06.9]} 57... Kg3 {[%clk 0:00:10.8]} 58. c7 {[%clk 0:00:07.1]} 58...
Kh2 {[%clk 0:00:11.7]} 59. Bd5 {[%clk 0:00:07.4]} 59... Kg3 {[%clk 0:00:11.5]}
60. c8=Q {[%clk 0:00:07.9]} 60... h2 {[%clk 0:00:10.7]} 61. Qb7 {[%clk 0:00:08]}
1-0

[Event "*** SCC Grand Prix: Titled Tuesday Blitz"]
[Site "Chess.com"]
[Date "2020.08.25"]
[Round "10"]
[White "kobemagic"]
[Black "winniethepooh04"]
[Result "0-1"]
[WhiteElo "2389"]
[BlackElo "2232"]
[TimeControl "180+1"]
[EndTime "12:01:08 PDT"]
[Termination "winniethepooh04 won on time"]

1. c4 {[%clk 0:03:00.9]} 1... e5 {[%clk 0:02:58.4]} 2. g3 {[%clk 0:03:01.8]}
2... g6 {[%clk 0:02:58.6]} 3. d4 {[%clk 0:02:58.9]} 3... Bg7 {[%clk 0:02:59.5]}
4. dxe5 {[%clk 0:02:58.8]} 4... Bxe5 {[%clk 0:02:59.9]} 5. Nf3 {[%clk
0:02:57.9]} 5... Bg7 {[%clk 0:03:00]} 6. Bg2 {[%clk 0:02:58.5]} 6... Nf6 {[%clk
0:03:00.4]} 7. O-O {[%clk 0:02:58.7]} 7... O-O {[%clk 0:03:00.9]} 8. Nc3 {[%clk
0:02:59.3]} 8... d6 {[%clk 0:03:01.3]} 9. b3 {[%clk 0:02:58.2]} 9... Nc6 {[%clk
0:03:01.7]} 10. Bb2 {[%clk 0:02:58.3]} 10... Bg4 {[%clk 0:03:02]} 11. h3 {[%clk
0:02:55.9]} 11... Bxf3 {[%clk 0:02:59.9]} 12. Bxf3 {[%clk 0:02:56.8]} 12... Qd7
{[%clk 0:03:00.4]} 13. Bg2 {[%clk 0:02:55.8]} 13... a6 {[%clk 0:03:00.5]} 14.
Qc2 {[%clk 0:02:53.8]} 14... Rab8 {[%clk 0:02:50.9]} 15. Nd5 {[%clk 0:02:48.9]}
15... Nxd5 {[%clk 0:02:47.7]} 16. cxd5 {[%clk 0:02:46.8]} 16... Nd4 {[%clk
0:02:38.1]} 17. Bxd4 {[%clk 0:02:41.2]} 17... Bxd4 {[%clk 0:02:38.3]} 18. Rac1
{[%clk 0:02:41.7]} 18... Bg7 {[%clk 0:02:38.4]} 19. Qxc7 {[%clk 0:02:39]} 19...
Qxc7 {[%clk 0:02:37.9]} 20. Rxc7 {[%clk 0:02:38.4]} 20... Be5 {[%clk 0:02:38.6]}
21. Rfc1 {[%clk 0:02:32.3]} 21... Bd4 {[%clk 0:02:31.2]} 22. e3 {[%clk
0:02:24.9]} 22... Bc5 {[%clk 0:02:30.8]} 23. Rc4 {[%clk 0:02:05.9]} 23... b5
{[%clk 0:02:29.6]} 24. Rc2 {[%clk 0:01:59.4]} 24... a5 {[%clk 0:02:26.7]} 25. e4
{[%clk 0:01:51.4]} 25... f6 {[%clk 0:02:19.8]} 26. h4 {[%clk 0:01:46]} 26... Rf7
{[%clk 0:02:20.1]} 27. Rxf7 {[%clk 0:01:34.1]} 27... Kxf7 {[%clk 0:02:19.1]} 28.
Kf1 {[%clk 0:01:33.9]} 28... a4 {[%clk 0:02:14.5]} 29. Ke2 {[%clk 0:01:24.5]}
29... axb3 {[%clk 0:02:12.6]} 30. axb3 {[%clk 0:01:25.4]} 30... b4 {[%clk
0:02:11.4]} 31. Ra2 {[%clk 0:01:17.9]} 31... f5 {[%clk 0:02:05]} 32. Kd3 {[%clk
0:01:15.4]} 32... Kf6 {[%clk 0:02:05.1]} 33. f4 {[%clk 0:01:14.3]} 33... Rc8
{[%clk 0:01:52.5]} 34. Ra6 {[%clk 0:01:12.4]} 34... fxe4+ {[%clk 0:01:47]} 35.
Bxe4 {[%clk 0:01:11.1]} 35... Ke7 {[%clk 0:01:44.1]} 36. g4 {[%clk 0:01:07]}
36... Bf2 {[%clk 0:01:43.8]} 37. h5 {[%clk 0:01:00]} 37... Rc3+ {[%clk
0:01:43.6]} 38. Ke2 {[%clk 0:01:00.2]} 38... Be3 {[%clk 0:01:34.4]} 39. hxg6
{[%clk 0:00:58.5]} 39... hxg6 {[%clk 0:01:34.4]} 40. Bxg6 {[%clk 0:00:53.7]}
40... Bxf4 {[%clk 0:01:34.5]} 41. Bd3 {[%clk 0:00:44.2]} 41... Rxb3 {[%clk
0:01:32.6]} 42. Rb6 {[%clk 0:00:42.6]} 42... Be5 {[%clk 0:01:25]} 43. g5 {[%clk
0:00:41.1]} 43... Rb2+ {[%clk 0:01:21.5]} 44. Kf3 {[%clk 0:00:40.2]} 44... Rf2+
{[%clk 0:01:21.6]} 45. Kg4 {[%clk 0:00:25.8]} 45... Rd2 {[%clk 0:01:17]} 46.
Rb7+ {[%clk 0:00:25.4]} 46... Kf8 {[%clk 0:01:17.3]} 47. Be4 {[%clk 0:00:20.8]}
47... Rf2 {[%clk 0:01:15.1]} 48. Bf5 {[%clk 0:00:18.5]} 48... Rf4+ {[%clk
0:01:13.9]} 49. Kh5 {[%clk 0:00:15.9]} 49... Rxf5 {[%clk 0:01:04.2]} 50. Rxb4
{[%clk 0:00:15.3]} 50... Kg7 {[%clk 0:00:43.1]} 51. Rb7+ {[%clk 0:00:11.2]}
51... Rf7 {[%clk 0:00:43.1]} 52. Rb8 {[%clk 0:00:10.6]} 52... Bf4 {[%clk
0:00:35.2]} 53. Rb4 {[%clk 0:00:08.3]} 53... Bg3 {[%clk 0:00:32.2]} 54. Rg4
{[%clk 0:00:07.3]} 54... Be5 {[%clk 0:00:32.2]} 55. Rb4 {[%clk 0:00:07.2]} 55...
Rc7 {[%clk 0:00:29.8]} 56. Ra4 {[%clk 0:00:06.7]} 56... Rc5 {[%clk 0:00:26.4]}
57. Ra7+ {[%clk 0:00:06.4]} 57... Kg8 {[%clk 0:00:25.2]} 58. Ra8+ {[%clk
0:00:05.8]} 58... Kf7 {[%clk 0:00:25.1]} 59. Ra7+ {[%clk 0:00:05.7]} 59... Kf8
{[%clk 0:00:25.1]} 60. Ra8+ {[%clk 0:00:05.5]} 60... Ke7 {[%clk 0:00:25]} 61.
Ra7+ {[%clk 0:00:06.2]} 61... Kd8 {[%clk 0:00:23.4]} 62. g6 {[%clk 0:00:05.8]}
62... Rxd5 {[%clk 0:00:22.1]} 63. Kh6 {[%clk 0:00:05.8]} 63... Bf4+ {[%clk
0:00:19.8]} 64. Kh7 {[%clk 0:00:05.1]} 64... Rh5+ {[%clk 0:00:20.3]} 65. Kg8
{[%clk 0:00:04.5]} 65... Be5 {[%clk 0:00:19.7]} 66. Kf7 {[%clk 0:00:03.1]} 66...
Rg5 {[%clk 0:00:18.7]} 0-1

[Event "*** SCC Grand Prix: Titled Tuesday Blitz"]
[Site "Chess.com"]
[Date "2020.08.25"]
[Round "10"]
[White "Miss_JJ20"]
[Black "Vesper2018"]
[Result "0-1"]
[WhiteElo "2434"]
[BlackElo "2591"]
[TimeControl "180+1"]
[EndTime "12:01:12 PDT"]
[Termination "Vesper2018 won on time"]

1. d4 {[%clk 0:03:00.9]} 1... Nf6 {[%clk 0:02:57.6]} 2. c4 {[%clk 0:02:59.9]}
2... g6 {[%clk 0:02:57.4]} 3. g3 {[%clk 0:02:59.7]} 3... Bg7 {[%clk 0:02:57.3]}
4. Bg2 {[%clk 0:03:00]} 4... O-O {[%clk 0:02:57.6]} 5. Nc3 {[%clk 0:03:00.2]}
5... d6 {[%clk 0:02:57]} 6. Nf3 {[%clk 0:02:59.4]} 6... Nc6 {[%clk 0:02:56.9]}
7. O-O {[%clk 0:02:59]} 7... a6 {[%clk 0:02:56.8]} 8. b3 {[%clk 0:02:58.4]} 8...
Rb8 {[%clk 0:02:56.2]} 9. Nd5 {[%clk 0:02:57.9]} 9... Nh5 {[%clk 0:02:52.4]} 10.
Bg5 {[%clk 0:02:41]} 10... h6 {[%clk 0:02:45.7]} 11. Be3 {[%clk 0:02:39.8]}
11... f5 {[%clk 0:02:36.2]} 12. h4 {[%clk 0:02:14.3]} 12... e6 {[%clk
0:02:15.9]} 13. Nf4 {[%clk 0:02:09.7]} 13... Nxf4 {[%clk 0:02:12]} 14. Bxf4
{[%clk 0:02:10.6]} 14... e5 {[%clk 0:02:10.1]} 15. Bc1 {[%clk 0:01:49.1]} 15...
e4 {[%clk 0:02:06.1]} 16. Ne1 {[%clk 0:01:23.9]} 16... Nxd4 {[%clk 0:02:05.7]}
17. Rb1 {[%clk 0:01:23.8]} 17... Ne6 {[%clk 0:02:01.2]} 18. Nc2 {[%clk
0:01:20.8]} 18... g5 {[%clk 0:01:48.7]} 19. hxg5 {[%clk 0:01:19.1]} 19... hxg5
{[%clk 0:01:48.8]} 20. e3 {[%clk 0:01:07.3]} 20... g4 {[%clk 0:01:48.2]} 21. Nd4
{[%clk 0:01:04.9]} 21... Ng5 {[%clk 0:01:47]} 22. Re1 {[%clk 0:01:00.2]} 22...
Nf3+ {[%clk 0:01:46.4]} 23. Nxf3 {[%clk 0:01:00.4]} 23... gxf3 {[%clk
0:01:44.9]} 24. Bf1 {[%clk 0:01:01.3]} 24... Qg5 {[%clk 0:01:43.2]} 25. Qd5+
{[%clk 0:00:58.4]} 25... Kh7 {[%clk 0:01:38.9]} 26. Bh3 {[%clk 0:00:41.7]} 26...
Be5 {[%clk 0:01:33.1]} 27. Kh2 {[%clk 0:00:41.1]} 27... Kg6 {[%clk 0:01:25.1]}
28. Rh1 {[%clk 0:00:39.6]} 28... Rh8 {[%clk 0:01:20.6]} 29. Kg1 {[%clk
0:00:36.8]} 29... Bd7 {[%clk 0:01:19.2]} 30. Bb2 {[%clk 0:00:36.6]} 30... Rhe8
{[%clk 0:00:54]} 31. Bxe5 {[%clk 0:00:29.7]} 31... Rxe5 {[%clk 0:00:53.7]} 32.
Qd4 {[%clk 0:00:28.7]} 32... Qf6 {[%clk 0:00:37.7]} 33. Rc1 {[%clk 0:00:24.4]}
33... b6 {[%clk 0:00:36.1]} 34. b4 {[%clk 0:00:23.6]} 34... c5 {[%clk
0:00:32.9]} 35. Qd2 {[%clk 0:00:22.8]} 35... Kg7 {[%clk 0:00:21.8]} 36. Rd1
{[%clk 0:00:21]} 36... Ba4 {[%clk 0:00:17.2]} 37. Qxd6 {[%clk 0:00:18.3]} 37...
Qxd6 {[%clk 0:00:14.1]} 38. Rxd6 {[%clk 0:00:19.2]} 38... cxb4 {[%clk
0:00:14.3]} 39. Bf1 {[%clk 0:00:17.4]} 39... Be8 {[%clk 0:00:10.6]} 40. Rdh6
{[%clk 0:00:10.3]} 40... Bg6 {[%clk 0:00:09.9]} 41. g4 {[%clk 0:00:06.9]} 41...
fxg4 {[%clk 0:00:09.3]} 42. R6h4 {[%clk 0:00:07.4]} 42... Rg5 {[%clk 0:00:09.1]}
43. Kh2 {[%clk 0:00:07.2]} 43... g3+ {[%clk 0:00:09.5]} 44. fxg3 {[%clk
0:00:07.7]} 44... Rd8 {[%clk 0:00:10.2]} 45. g4 {[%clk 0:00:07]} 45... Rd2+
{[%clk 0:00:09.8]} 46. Kg3 {[%clk 0:00:07.4]} 46... Re5 {[%clk 0:00:07.5]} 47.
Kf4 {[%clk 0:00:06.5]} 47... Rc5 {[%clk 0:00:07.2]} 48. Rh8 {[%clk 0:00:06.1]}
48... Rc7 {[%clk 0:00:06.1]} 49. Rb8 {[%clk 0:00:05.8]} 49... Rf7+ {[%clk
0:00:06.2]} 50. Kg3 {[%clk 0:00:06.5]} 50... f2 {[%clk 0:00:05.9]} 51. Rhh8
{[%clk 0:00:06]} 51... Rd1 {[%clk 0:00:03.8]} 52. Kg2 {[%clk 0:00:05.9]} 52...
Kf6 {[%clk 0:00:03.3]} 53. Rxb6+ {[%clk 0:00:05.5]} 53... Kg5 {[%clk 0:00:03.8]}
54. Rg8 {[%clk 0:00:05.7]} 54... Rf6 {[%clk 0:00:04.4]} 55. Rxf6 {[%clk
0:00:03.4]} 55... Kxf6 {[%clk 0:00:04.7]} 56. c5 {[%clk 0:00:03.8]} 56... Rc1
{[%clk 0:00:03.2]} 57. Kxf2 {[%clk 0:00:02.1]} 57... Rxc5 {[%clk 0:00:03.3]} 58.
Bxa6 {[%clk 0:00:02.8]} 58... Rc2+ {[%clk 0:00:03.4]} 59. Kg3 {[%clk 0:00:02.9]}
59... Rxa2 {[%clk 0:00:04.1]} 60. Bc4 {[%clk 0:00:03]} 60... Rc2 {[%clk
0:00:04.4]} 61. g5+ {[%clk 0:00:02.3]} 61... Kf5 {[%clk 0:00:03.5]} 62. Bb3
{[%clk 0:00:01.8]} 62... Rc3 {[%clk 0:00:03.5]} 63. Rf8+ {[%clk 0:00:02.2]}
63... Kxg5 {[%clk 0:00:03.5]} 64. Bd5 {[%clk 0:00:01.9]} 64... Rxe3+ {[%clk
0:00:03.8]} 65. Kf2 {[%clk 0:00:01.4]} 65... Rd3 {[%clk 0:00:04.4]} 66. Rd8
{[%clk 0:00:01.4]} 66... Bf7 {[%clk 0:00:03.7]} 0-1

[Event "*** SCC Grand Prix: Titled Tuesday Blitz"]
[Site "Chess.com"]
[Date "2020.08.25"]
[Round "10"]
[White "Annagozel"]
[Black "SanchezKelvin"]
[Result "0-1"]
[WhiteElo "1846"]
[BlackElo "2389"]
[TimeControl "180+1"]
[EndTime "12:01:13 PDT"]
[Termination "SanchezKelvin won on time"]

1. e4 {[%clk 0:03:00.9]} 1... e5 {[%clk 0:02:57.8]} 2. Nf3 {[%clk 0:03:00.1]}
2... Nc6 {[%clk 0:02:47.5]} 3. Bc4 {[%clk 0:02:59.2]} 3... Bc5 {[%clk
0:02:46.4]} 4. Nc3 {[%clk 0:02:59.6]} 4... Nf6 {[%clk 0:02:42.9]} 5. d3 {[%clk
0:02:59.6]} 5... h6 {[%clk 0:02:35.5]} 6. O-O {[%clk 0:02:57.8]} 6... d6 {[%clk
0:00:31.4]} 7. h3 {[%clk 0:02:57.4]} 7... Be6 {[%clk 0:00:30.7]} 8. Bb3 {[%clk
0:02:54.6]} 8... Qd7 {[%clk 0:00:29.4]} 9. Bxe6 {[%clk 0:02:41]} 9... fxe6
{[%clk 0:00:28.2]} 10. Be3 {[%clk 0:02:41.2]} 10... Bb6 {[%clk 0:00:28.1]} 11.
Bxb6 {[%clk 0:02:38.8]} 11... axb6 {[%clk 0:00:29]} 12. d4 {[%clk 0:02:35.5]}
12... exd4 {[%clk 0:00:27.1]} 13. Nxd4 {[%clk 0:02:34.6]} 13... O-O {[%clk
0:00:27]} 14. Nxc6 {[%clk 0:02:33.5]} 14... bxc6 {[%clk 0:00:24.7]} 15. e5
{[%clk 0:02:33.7]} 15... Nd5 {[%clk 0:00:22.6]} 16. Nxd5 {[%clk 0:02:30.6]}
16... cxd5 {[%clk 0:00:23.5]} 17. exd6 {[%clk 0:02:30.4]} 17... Qxd6 {[%clk
0:00:23.6]} 18. Qe2 {[%clk 0:02:27.7]} 18... e5 {[%clk 0:00:22.2]} 19. Rfe1
{[%clk 0:02:23.9]} 19... Rae8 {[%clk 0:00:21.5]} 20. Rad1 {[%clk 0:02:21.8]}
20... c6 {[%clk 0:00:20.1]} 21. c4 {[%clk 0:02:20.7]} 21... d4 {[%clk
0:00:18.9]} 22. Qe4 {[%clk 0:02:17.8]} 22... Re6 {[%clk 0:00:16.2]} 23. b3
{[%clk 0:02:14.9]} 23... Rf4 {[%clk 0:00:15.4]} 24. Qe2 {[%clk 0:02:10.1]} 24...
e4 {[%clk 0:00:14.2]} 25. Qh5 {[%clk 0:01:55.8]} 25... Ref6 {[%clk 0:00:12]} 26.
Rf1 {[%clk 0:01:50.8]} 26... c5 {[%clk 0:00:12.2]} 27. Qd5+ {[%clk 0:01:46.9]}
27... Qxd5 {[%clk 0:00:12.1]} 28. cxd5 {[%clk 0:01:46.9]} 28... Rd6 {[%clk
0:00:13]} 29. b4 {[%clk 0:01:41.8]} 29... Rxd5 {[%clk 0:00:12.5]} 30. bxc5
{[%clk 0:01:39.6]} 30... bxc5 {[%clk 0:00:13.4]} 31. a4 {[%clk 0:01:39]} 31...
Rf6 {[%clk 0:00:13.6]} 32. Rfe1 {[%clk 0:01:36.3]} 32... Ra6 {[%clk 0:00:14.5]}
33. Rxe4 {[%clk 0:01:34.6]} 33... Rxa4 {[%clk 0:00:14.5]} 34. Re8+ {[%clk
0:01:32.2]} 34... Kh7 {[%clk 0:00:11.7]} 35. Rc8 {[%clk 0:01:31]} 35... c4
{[%clk 0:00:11]} 36. Kf1 {[%clk 0:01:29.1]} 36... d3 {[%clk 0:00:10.4]} 37. Ke1
{[%clk 0:01:27.2]} 37... Rd4 {[%clk 0:00:10.5]} 38. Kd2 {[%clk 0:01:25.7]} 38...
Ra2+ {[%clk 0:00:10.5]} 39. Ke3 {[%clk 0:01:24.3]} 39... Rh4 {[%clk 0:00:09.7]}
40. Rd2 {[%clk 0:01:20.2]} 40... Rxd2 {[%clk 0:00:09.3]} 41. Kxd2 {[%clk
0:01:20]} 41... Re4 {[%clk 0:00:10.2]} 42. Kc3 {[%clk 0:01:17.2]} 42... Kg6
{[%clk 0:00:10.4]} 43. Rc5 {[%clk 0:01:12.4]} 43... Re2 {[%clk 0:00:09.7]} 44.
Rxc4 {[%clk 0:01:05.9]} 44... Rxf2 {[%clk 0:00:09.4]} 45. Kxd3 {[%clk
0:01:03.5]} 45... Rxg2 {[%clk 0:00:08.9]} 46. h4 {[%clk 0:00:49.6]} 46... Kh5
{[%clk 0:00:09]} 47. Ke3 {[%clk 0:00:47.1]} 47... Rg4 {[%clk 0:00:09.1]} 48. Rc1
{[%clk 0:00:33.8]} 48... Kxh4 {[%clk 0:00:10]} 49. Rh1+ {[%clk 0:00:32.3]} 49...
Kg5 {[%clk 0:00:10.9]} 50. Kf3 {[%clk 0:00:30.9]} 50... h5 {[%clk 0:00:11.8]}
51. Rh3 {[%clk 0:00:27.3]} 51... h4 {[%clk 0:00:11]} 52. Rh1 {[%clk 0:00:22.6]}
52... Rg3+ {[%clk 0:00:11]} 53. Kf2 {[%clk 0:00:20.5]} 53... Kg4 {[%clk
0:00:11.9]} 54. Re1 {[%clk 0:00:17.9]} 54... g5 {[%clk 0:00:12.8]} 55. Re4+
{[%clk 0:00:16.6]} 55... Kh3 {[%clk 0:00:13]} 56. Re1 {[%clk 0:00:14.7]} 56...
Rg2+ {[%clk 0:00:13.2]} 57. Kf3 {[%clk 0:00:11.3]} 57... g4+ {[%clk 0:00:13.6]}
58. Kf4 {[%clk 0:00:10.8]} 58... Rf2+ {[%clk 0:00:11.7]} 59. Ke3 {[%clk
0:00:09.8]} 59... g3 {[%clk 0:00:12]} 60. Rh1+ {[%clk 0:00:06.3]} 60... Kg4
{[%clk 0:00:12.1]} 61. Re1 {[%clk 0:00:05.2]} 61... h3 {[%clk 0:00:11.7]} 62.
Rg1 {[%clk 0:00:02]} 62... h2 {[%clk 0:00:11.7]} 0-1